Workbook

Sheet MSS
B1: Jukka Viitala | E1: 16.6.1994 Kiiminki
B2: YKKÖSPESIS | E2: Runkosarja | L2: Runkosarja TOP-10 | Q2: Jatkosarjat | X2: SUOMENSARJA | AA2: Runkosarja | AH2: Runkosarja TOP-10 | AM2: Jatkosarjat
B3: Vuosi | C3: Sija | D3: Seura | E3: OTT | F3: KUN | G3: LÖI | H3: TOI | I3: KL | J3: KL-% | L3: LÖI | M3: TOI | N3: L+T | O3: KL | Q3: OTT | R3: KUN | S3: LÖI | T3: TOI | U3: KL | V3: KL-% | X3: Vuosi | Y3: Sija | Z3: Seura | AA3: OTT | AB3: KUN | AC3: LÖI | AD3: TOI | AE3: KL | AF3: KL-% | AH3: LÖI | AI3: TOI | AJ3: L+T | AK3: KL | AM3: OTT | AN3: KUN | AO3: LÖI | AP3: TOI | AQ3: KL | AR3: KL-%
X4: 2010 | Y4: 7. | Z4: KiimU | AA4: 1 | AB4: 0 | AC4: 0 | AD4: 0 | AE4: 1 | AF4: 33.3 % | AG4: 3
X5: 2011 | Y5: 5. | Z5: KiimU | AA5: 2 | AB5: 0 | AC5: 0 | AD5: 1 | AE5: 4 | AF5: 80.0 % | AG5: 5
X6: 2012 | Y6: 9. | Z6: IiU | AA6: 9 | AB6: 0 | AC6: 0 | AD6: 2 | AE6: 16 | AF6: 42.1 % | AG6: 38
X7: 2013 | Y7: 2. | Z7: IiU | AA7: 17 | AB7: 0 | AC7: 3 | AD7: 22 | AE7: 21 | AF7: 42.0 % | AG7: 50 | AM7: 5 | AN7: 0 | AO7: 0 | AP7: 4 | AQ7: 6 | AR7: 40.0 % | AS7: 15
X9: 2015 | Y9: 7. | Z9: IiU | AA9: 11 | AB9: 0 | AC9: 1 | AD9: 13 | AE9: 19 | AF9: 48.7 % | AG9: 39
X10: 2016 | Y10: 9. | Z10: Napa-Pesis | AA10: 17 | AB10: 1 | AC10: 5 | AD10: 8 | AE10: 27 | AF10: 37.0 % | AG10: 73
X11: 2017 | Y11: 9. | Z11: Napa-Pesis | AA11: 16 | AB11: 0 | AC11: 8 | AD11: 7 | AE11: 31 | AF11: 41.3 % | AG11: 75
B12: YHTEENSÄ | E12: =SUM(E4:E11) -> 0 | F12: =SUM(F4:F11) -> 0 | G12: =SUM(G4:G11) -> 0 | H12: =SUM(H4:H11) -> 0 | I12: =SUM(I4:I11) -> 0 | J12: 0.0 % | K12: =SUM(K4:K11) -> 0 | Q12: =SUM(Q4:Q11) -> 0 | R12: =SUM(R4:R11) -> 0 | S12: =SUM(S4:S11) -> 0 | T12: =SUM(T4:T11) -> 0 | U12: =SUM(U4:U11) -> 0 | V12: 0.0 % | W12: =SUM(W4:W11) -> 0 | X12: YHTEENSÄ | AA12: =SUM(AA4:AA11) -> 73 | AB12: =SUM(AB4:AB11) -> 1 | AC12: =SUM(AC4:AC11) -> 17 | AD12: =SUM(AD4:AD11) -> 53 | AE12: =SUM(AE4:AE11) -> 119 | AF12: =PRODUCT(AE12/AG12) -> 42.0 % | AG12: =SUM(AG4:AG11) -> 283 | AM12: =SUM(AM4:AM11) -> 5 | AN12: =SUM(AN4:AN11) -> 0 | AO12: =SUM(AO4:AO11) -> 0 | AP12: =SUM(AP4:AP11) -> 4 | AQ12: =SUM(AQ4:AQ11) -> 6 | AR12: =PRODUCT(AQ12/AS12) -> 40.0 % | AS12: =SUM(AS4:AS11) -> 15
B14: KAIKKI OTTELUT | E14: OTT | F14: KUN | G14: LÖI | H14: TOI | I14: KL | J14: KL-% | L14: ka/L | M14: ka/T | N14: ka/l+t | O14: ka/kl | R14: Seurat | T14: KiimU = Kiimingin Urheilijat (1938), kasvattajaseura
B15: SUPERPESIS | E15: 0 | F15: 0 | G15: 0 | H15: 0 | I15: 0 | J15: 0.0 % | K15: 0 | L15: 0.00 | M15: 0.00 | N15: 0.00 | O15: 0.00 | T15: IiU = Iin Urheilijat (1945)
B16: YKKÖSPESIS | E16: =PRODUCT(E12+Q12) -> 0 | F16: =PRODUCT(F12+R12) -> 0 | G16: =PRODUCT(G12+S12) -> 0 | H16: =PRODUCT(H12+T12) -> 0 | I16: =PRODUCT(I12+U12) -> 0 | J16: 0.0 % | K16: 0 | L16: 0.00 | M16: 0.00 | N16: 0.00 | O16: 0.00 | T16: Napa-Pesis = Napapiirin Pesis-Team (1998)
B17: SUOMENSARJA | E17: =PRODUCT(AA12+AM12) -> 78 | F17: =PRODUCT(AB12+AN12) -> 1 | G17: =PRODUCT(AC12+AO12) -> 17 | H17: =PRODUCT(AD12+AP12) -> 57 | I17: =PRODUCT(AE12+AQ12) -> 125 | J17: =PRODUCT(I17/K17) -> 41.9 % | K17: =PRODUCT(AG12+AS12) -> 298 | L17: =PRODUCT((F17+G17)/E17) -> 0.23 | M17: =PRODUCT(H17/E17) -> 0.73 | N17: =PRODUCT((F17+G17+H17)/E17) -> 0.96 | O17: =PRODUCT(I17/E17) -> 1.60
B18: YHTEENSÄ | E18: =SUM(E15:E17) -> 78 | F18: =SUM(F15:F17) -> 1 | G18: 17 | H18: 57 | I18: 125 | J18: =PRODUCT(I18/K18) -> 41.9 % | K18: =SUM(K15:K17) -> 298 | L18: =PRODUCT((F18+G18)/E18) -> 0.23 | M18: =PRODUCT(H18/E18) -> 0.73 | N18: =PRODUCT((F18+G18+H18)/E18) -> 0.96 | O18: =PRODUCT(I18/E18) -> 1.60
